Cogmind - Beta 15 @@@ ROGUE MODE // 2025.07.07 @ 18:30:20 Player: McSaucyNugget Result: Self-destructed Performance ------------- Evolutions (9) 4500 Regions Visited (26) 5200 Robots Destroyed (178) 890 Value Destroyed (6118) 6118 Prototype IDs (49) 980 Alien Tech Used (8) 1600 Bonus (7269) 7269 TOTAL SCORE: 26557 Bonus ------- High Alert Combat Kills 202 Follower Combat Kills 1200 Entered Garrisons 200 Used RIF Installer 500 Network Hubs Disabled 200 Met MAIN.C 5000 Friendly Fire -33 Cogmind --------- Core Integrity 854/1600 Matter 190/300 Energy 240/240 System Corruption 11% Temperature Cool (0) Movement Immobile (Siege) Location -1/Command Parts ------- > --- POWER (3) -------- Micro Antimatter Reactor Light Quantum Reactor > --- PROPULSION (8) --- Advanced Heavy Siege Treads Advanced Heavy Siege Treads > --- UTILITY (11) ----- 2N-1CE's Frost Array Medium Storage Unit Advanced Visual Processing Unit Advanced Target Analyzer Advanced System Shield Spacefold Activator > --- WEAPON (3) ------- Cooled Nova Cannon > --- INVENTORY (14) --- Huge Storage Unit Transdimensional Reconstructor Sigix Sheargun Vibroblade Peak State ------------ > --- POWER ------------ Micro Antimatter Reactor Light Quantum Reactor Light Quantum Reactor > --- PROPULSION ------- Improved VTOL Module Improved VTOL Module Improved VTOL Module Improved VTOL Module Field Propulsion Array Electron Diverter Experimental Q-thruster > --- UTILITY ---------- 2N-1CE's Frost Array Medium Storage Unit Advanced Visual Processing Unit Advanced Transmission Jammer Improved Reaction Control System Experimental Propulsion Shielding Graphene Brace Improved Hacking Suite System Mapper Advanced System Shield Spacefold Activator > --- WEAPON ----------- Sigix Broadsword > --- INVENTORY -------- Light Quantum Reactor Advanced Heavy Siege Treads Advanced Heavy Siege Treads Huge Storage Unit Advanced Particle Charger Transdimensional Reconstructor Transdimensional Reconstructor Integrity Redistributor Core Membrane Sigix Sheargun Cooled Nova Cannon Vibroblade [Rating: 190] Favorites ----------- Power Micro Antimatter Reactor Engine Light Angular Momentum Engine Power Core Nuclear Core Reactor Micro Antimatter Reactor Propulsion Improved VTOL Module Treads Light Treads Wheel Armored Wheel Flight Unit Improved VTOL Module Utility Hacking Suite Device Improved Sensor Array Storage Huge Storage Unit Processor Advanced Visual Processing Unit Hackware Hacking Suite Protection Heavy Armor Plating Artifact Spacefold Activator Weapon Compact Ion Cannon Energy Gun Beamcaster Energy Cannon Compact Ion Cannon Ballistic Gun Enhanced Autogun Ballistic Cannon Assault Cannon Launcher Rocket Launcher Special Weapon Remote Datajack Impact Weapon Impact Mace Slashing Weapon Sigix Broadsword Piercing Weapon Heavy Pick Special Melee Weapon Datajack Build | -11 -10 -10 -9 -9 -8 -8 -8 -8 -6 -6 -6 -6 -5 -5 -5 -5 -5 -5 -4 -3 -3 -2 -2 -2 -1 -1 ------- Run | Yrd Mat Min Mat Min Mat Sto Gar Rec Fac Low Low Zio Pro Fac Ext Cet Arc Hub Fac Res Qua Res Tes Sec Acc Com Slots Evolved 18 | . . . 2 . 2 . . . 4 . . . . 2 . . . . 2 2 . 2 . . 2 . Power 2 | . . . . . . . . . . . . . . . . . . . 1 . . . . . 1 . Propulsion 6 | . . . 1 . 1 . . . 1 . . . . . . . . . 1 1 . 1 . . . . Utility 9 | . . . 1 . 1 . . . 3 . . . . 2 . . . . . 1 . 1 . . . . Weapon 1 | . . . . . . . . . . . . . . . . . . . . . . . . . 1 . Parts Attached 161 | 6 8 4 6 1 15 17 6 . 24 . . . . 4 12 . . 2 5 11 9 7 8 3 1 12 Power 25 | 1 . . 1 . 2 3 1 . 3 . . . . . 3 . . . 1 2 1 3 . 1 . 3 Engine 10 | 1 . . 1 . 2 1 . . 2 . . . . . 3 . . . . . . . . . . . Core 4 | . . . . . . 2 1 . 1 . . . . . . . . . . . . . . . . . Reactor 11 | . . . . . . . . . . . . . . . . . . . 1 2 1 3 . 1 . 3 Propulsion 40 | 2 2 . 2 . 4 8 1 . 7 . . . . 2 . . . . 1 3 1 . 3 . . 4 Treads 14 | 2 . . . . 3 6 1 . . . . . . . . . . . . . . . . . . 2 Leg . | . . . . . . . . . . . . . . . . . . . . . . . . . . . Wheel 6 | . 2 . 2 . . 2 . . . . . . . . . . . . . . . . . . . . Hover . | . . . . . . . . . . . . . . . . . . . . . . . . . . . Flight 20 | . . . . . 1 . . . 7 . . . . 2 . . . . 1 3 1 . 3 . . 2 Utility 61 | 1 5 1 1 . 3 3 3 . 10 . . . . 2 6 . . 2 2 3 5 3 3 2 1 5 Device 25 | . 1 . 1 . . 2 1 . 3 . . . . 1 1 . . 2 1 1 2 2 2 1 . 4 Storage 6 | 1 3 . . . . . . . . . . . . . . . . . . 1 . 1 . . . . Processor 4 | . . . . . 1 . 1 . 1 . . . . . . . . . . . . . . . . 1 Hackware 14 | . . . . . . . 1 . 5 . . . . 1 2 . . . 1 . 3 . 1 . . . Protection 11 | . 1 1 . . 2 1 . . 1 . . . . . 3 . . . . 1 . . . . 1 . Artifact 1 | . . . . . . . . . . . . . . . . . . . . . . . . 1 . . Weapon 35 | 2 1 3 2 1 6 3 1 . 4 . . . . . 3 . . . 1 3 2 1 2 . . . Energy Gun 3 | . 1 1 . 1 . . . . . . . . . . . . . . . . . . . . . . Energy Cannon 6 | . . . 2 . . 1 . . . . . . . . 1 . . . . . . 1 1 . . . Ballistic Gun 10 | 2 . 1 . . 4 1 1 . 1 . . . . . . . . . . . . . . . . . Ballistic Cannon 3 | . . 1 . . 1 1 . . . . . . . . . . . . . . . . . . . . Launcher 1 | . . . . . 1 . . . . . . . . . . . . . . . . . . . . . Special Weapon 3 | . . . . . . . . . . . . . . . 1 . . . . . 1 . 1 . . . Impact Weapon 1 | . . . . . . . . . 1 . . . . . . . . . . . . . . . . . Slashing Weapon 3 | . . . . . . . . . . . . . . . . . . . 1 1 1 . . . . . Piercing Weapon 4 | . . . . . . . . . 2 . . . . . . . . . . 2 . . . . . . Special Melee Weapon 1 | . . . . . . . . . . . . . . . 1 . . . . . . . . . . . Unidentified Prototypes 15 | . . . 1 . 1 1 . . 2 . . . . . . . . 1 . 1 2 . 5 . . 1 Corrupted Parts 1 | . . . . . . . . . . . . . . . . . . . 1 . . . . . . . System Corruption 4 | . . . . . . . . . . . . . . . . . . . 4 . . . . . . . Parts Lost 35 | . 1 . . 2 1 6 4 . 1 . . . . . 4 . . . . 3 . 3 . 1 1 8 Power 6 | . . . . . . 1 1 . . . . . . . 2 . . . . . . 1 . . . 1 Propulsion 6 | . . . . . . 4 . . 1 . . . . . . . . . . . . 1 . . . . Utility 17 | . . . . 1 . 1 2 . . . . . . . 2 . . . . 2 . 1 . 1 1 6 Weapon 6 | . 1 . . 1 1 . 1 . . . . . . . . . . . . 1 . . . . . 1 Highest Loss Streak 4 | . 1 . . 2 1 3 1 . 1 . . . . . 2 . . . . 3 . 2 . 1 1 4 To Critical Strikes . | . . . . . . . . . . . . . . . . . . . . . . . . . . . Average Backups 13 | 2 7 18 23 22 23 23 24 24 5 5 5 5 5 4 4 5 5 5 4 5 7 8 8 10 12 10 Power 1 | . 1 2 2 4 2 2 1 1 . 1 1 1 1 1 . 1 1 1 1 1 . . 1 1 1 . Propulsion 3 | 1 2 4 5 6 7 6 8 7 . 1 1 1 1 1 1 1 1 1 1 . 2 1 1 1 . 1 Utility 4 | . 2 5 7 7 7 7 8 10 3 3 3 3 3 2 1 2 2 2 1 2 2 1 2 2 3 2 Weapon 3 | . . 6 7 4 6 7 6 6 . . . . . . 1 . . . . . . 1 2 2 3 3 Tool/Special . | . . . . . . . . . . . . . . . . . . . . . . . . . . . Unused Backups 60 | . . . 16 . 9 7 1 2 5 . . . . 1 . . . . 2 1 3 3 1 2 1 6 Power 7 | . . . . . 4 . . . 1 . . . . . . . . . 1 . . 1 . . . . Propulsion 11 | . . . 4 . . . . 1 2 . . . . . . . . . 1 1 1 . . . 1 . Utility 13 | . . . 2 . . 1 . 1 1 . . . . 1 . . . . . . 2 2 1 1 . 1 Weapon 26 | . . . 10 . 5 6 1 . 1 . . . . . . . . . . . . . . . . 3 Tool/Special 3 | . . . . . . . . . . . . . . . . . . . . . . . . 1 . 2 Average Slot Usage (%) 92 | . 98 99 98 99 86 85 89 90 92 100 100 100 100 93 98 100 100 100 95 96 89 86 89 89 83 74 Engine 5 | . 14 14 11 11 9 3 4 9 4 6 6 6 6 5 4 5 5 5 5 . . . . . . . Reactor 2 | . . . . . . . . . . . . . . . . . . . 4 8 9 7 8 8 8 8 Treads 7 | . 24 . 10 11 14 18 18 18 . . . . . . . . . . . . . . . . . 1 Wheel 8 | . 3 28 22 22 18 14 18 18 . . . . . . . . . . . . . . . . . . Flight 14 | . . . . . . . . . 26 33 33 33 33 29 29 29 29 29 29 30 28 28 29 30 28 23 Device 8 | . 4 11 10 10 3 6 4 9 7 6 6 6 6 10 10 5 5 5 9 8 4 8 12 11 11 12 Storage 6 | . 14 14 11 11 9 9 9 9 . . . . . . . . . . . 1 4 4 4 4 4 4 Processor 6 | . . . . . 5 2 4 9 12 13 13 13 13 11 11 11 11 11 10 9 9 8 8 8 8 5 Hackware 11 | . . . . . . . 3 . 24 26 26 26 26 23 23 29 29 29 26 21 22 21 21 21 15 8 Protection 4 | . 8 2 11 11 9 8 4 . . . . . . . 4 5 5 5 . 3 3 1 . . . 2 Energy Gun 2 | . 8 11 . 5 4 . 3 9 . . . . . . . . . . . . . . . . . . Energy Cannon 2 | . . . 1 . . 3 1 . 5 6 6 6 6 5 4 5 5 5 3 3 . . . . . . Ballistic Gun 5 | . 19 14 9 5 8 9 10 9 . . . . . . . . . . . . . . . . . . Ballistic Cannon 2 | . . 2 11 11 5 5 2 . . . . . . . . . . . . . . . . . . . Slashing Weapon 1 | . . . . . . . . . . . . . . . . . . . 3 3 4 3 3 4 3 4 Piercing Weapon 1 | . . . . . . . . . 4 6 6 6 6 5 4 5 5 5 1 . . . . . . . Peak Build Rating 190 | 6 8 16 23 26 35 35 35 36 57 57 57 57 57 69 71 70 70 74 88 112 128 141 159 170 175 190 Average Rating 61 | 4 7 9 20 24 30 31 32 35 52 57 57 57 57 64 69 70 70 70 82 108 122 135 147 156 172 159 On Entrance 65 | . 6 8 16 23 26 30 35 35 36 57 57 57 57 57 67 70 70 70 70 88 85 128 137 159 170 150 Naked Turns . | . . . . . . . . . . . . . . . . . . . . . . . . . . . Heaviest Build 114 | 14 90 96 101 102 114 111 110 94 17 17 17 17 17 18 30 25 25 25 37 38 42 44 39 45 46 73 Greatest Support 160 | 40 40 32 32 24 24 28 28 28 24 24 24 24 24 25 25 25 25 25 32 41 44 49 50 49 49 160 Greatest Overweight (x) 9 | 1 2 2 4 4 4 9 3 3 1 . . . . . 1 . . . 1 . . . . 1 . 1 Average Overweight (x) . | . . 2 3 4 4 5 3 3 . . . . . . . . . . . . . . . . . . Largest Inventory Capacity 25 | 8 25 25 25 25 25 25 25 25 25 5 5 5 5 5 5 5 5 5 5 10 10 10 10 14 14 14 Average Capacity 15 | 7 15 25 25 25 25 25 25 25 5 5 5 5 5 5 5 5 5 5 5 6 10 10 10 12 14 14 Most Carried 25 | 4 14 24 25 25 25 25 25 25 25 5 5 5 5 5 5 5 5 5 5 6 10 10 10 14 14 14 Average Carried 14 | 2 7 18 23 24 24 23 24 24 5 5 5 5 5 4 4 5 5 5 4 5 8 9 9 11 13 11 Final Capacity 25 | 8 25 25 25 25 25 25 25 25 5 5 5 5 5 5 5 5 5 5 5 10 10 10 10 14 14 14 Final Carried 25 | 4 14 24 25 24 25 25 25 25 5 5 5 5 5 5 5 5 5 5 4 6 9 10 10 14 13 4 Class Distribution -------------------- 35% | Mutant 26% | Hacker-Ninja 16% | Hacker-Scout 16% | Scavenger-Mutant 3% | Hacker-Sprinter Dominant Class ---------------- Mutant | -10/Materials Mutant | -10/Mines Mutant | -9/Materials Mutant | -9/Mines Mutant | -8/Materials Mutant | -8/Storage Scavenger-Mutant | -8/Garrison Scavenger-Mutant | -8/Recycling Hacker-Scout | -6/Factory Hacker-Scout | -6/Lower Caves Hacker-Scout | -6/Lower Caves Hacker-Scout | -6/Zion Hacker-Scout | -5/Proximity Caves Hacker-Ninja | -5/Factory Hacker-Ninja | -5/Extension Hacker-Scout | -5/Cetus Hacker-Scout | -5/Archives Hacker-Scout | -5/Hub_04(d) Hacker-Ninja | -4/Factory Hacker-Ninja | -3/Research Hacker-Scout | -3/Quarantine Hacker-Ninja | -2/Research Hacker-Ninja | -2/Testing Hacker-Ninja | -2/Section 7 Hacker-Ninja | -1/Access Hacker-Sprinter | -1/Command Resources | -11 -10 -10 -9 -9 -8 -8 -8 -8 -6 -6 -6 -6 -5 -5 -5 -5 -5 -5 -4 -3 -3 -2 -2 -2 -1 -1 ----------- Run | Yrd Mat Min Mat Min Mat Sto Gar Rec Fac Low Low Zio Pro Fac Ext Cet Arc Hub Fac Res Qua Res Tes Sec Acc Com Matter Collected 4966 | 263 434 339 322 54 493 850 544 28 290 . . . . . 220 . . . 110 177 150 177 47 182 126 160 Remotely . | . . . . . . . . . . . . . . . . . . . . . . . . . . . Salvage Created 7498 | 100 632 149 452 36 741 1264 628 481 283 26 . . . . 422 . . . 159 214 394 551 47 106 364 449 Parts 391 | 4 35 15 28 4 46 61 39 18 18 . . . . . 18 . . . 7 7 25 22 2 6 7 29 Haulers Intercepted 12 | . 1 . 1 . 3 3 . . 1 . . . . . . . . . 1 . . . . . 2 . Recyclers Shooed 10 | . 7 . . . 2 1 . . . . . . . . . . . . . . . . . . . . Parts Field Recycled . | . . . . . . . . . . . . . . . . . . . . . . . . . . . Retrieved Matter . | . . . . . . . . . . . . . . . . . . . . . . . . . . . Parts Self-Destructed . | . . . . . . . . . . . . . . . . . . . . . . . . . . . Prevented . | . . . . . . . . . . . . . . . . . . . . . . . . . . . Kills | -11 -10 -10 -9 -9 -8 -8 -8 -8 -6 -6 -6 -6 -5 -5 -5 -5 -5 -5 -4 -3 -3 -2 -2 -2 -1 -1 ------- Run | Yrd Mat Min Mat Min Mat Sto Gar Rec Fac Low Low Zio Pro Fac Ext Cet Arc Hub Fac Res Qua Res Tes Sec Acc Com Combat Hostiles Destroyed 119 | . 12 8 10 2 20 20 17 3 4 . . . . . 5 . . . . . 3 2 . 2 . 11 Melee 21 | . . . . . . . . . . . . . . . 3 . . . . . 3 2 . 2 . 11 Guns 49 | . 11 6 2 . 11 7 9 3 . . . . . . . . . . . . . . . . . . Cannons 40 | . . 2 8 2 5 13 5 . 4 . . . . . 1 . . . . . . . . . . . AOE 7 | . . . . . 4 . 3 . . . . . . . . . . . . . . . . . . . Classes Destroyed 17 | 2 6 1 1 . 2 1 . . 1 . . . . . . . . . . . 1 1 . 1 . . Worker 3 | . 1 . . . 1 1 . . . . . . . . . . . . . . . . . . . . Builder 2 | . . . . . . 1 . . . . . . . . 1 . . . . . . . . . . . Tunneler 3 | 1 1 . . 1 . . . . . . . . . . . . . . . . . . . . . . Hauler 12 | . 1 . 1 . 3 3 . . 1 . . . . . . . . . 1 . . . . . 2 . Recycler 17 | 1 2 . 1 . . 3 . 4 . . . . . . . . . . . 1 1 3 . . 1 . Mechanic 1 | . . . . . . . . . 1 . . . . . . . . . . . . . . . . . Operator 8 | . 1 . 1 . 1 . . . 1 . . . . . 1 . . . . . 2 . . 1 . . Drone 1 | . . . . . . . . . . . . . . . . . . . . . . . . 1 . . Watcher 14 | . 1 . . . . 1 . . 1 . . . . . 2 . . . 2 3 1 . 1 . 1 1 Swarmer 45 | . 6 6 3 2 7 . 4 . 4 . . . . . . . . . . . 3 . . . . 10 Grunt 46 | . 6 1 6 . 5 16 10 . . . . . . . 2 . . . . . . . . . . . Duelist 2 | . . . . . 1 . . . . . . . . . 1 . . . . . . . . . . . Researcher 1 | . . . . . . . . . . . . . . . . . . . . . 1 . . . . . Sentry 17 | . . . 1 . 5 4 2 3 . . . . . . 2 . . . . . . . . . . . Hunter 3 | . . . . . 2 . 1 . . . . . . . . . . . . . . . . . . . Programmer 4 | . . . . . . . . . . . . . . . . . . . . . . 2 . 1 . 1 Decomposer 1 | . . . . . . . . . . 1 . . . . . . . . . . . . . . . . Assembled 1 | . . 1 . . . . . . . . . . . . . . . . . . . . . . . . Best Kill Streak 6 | 2 3 3 3 2 6 6 4 2 5 . . . . . 1 . . . 1 2 2 2 1 1 4 5 Combat Bots Only 5 | . 3 3 3 2 5 5 4 1 4 . . . . . 1 . . . . . 2 2 . 1 . 5 Max Kills in Single Turn 2 | 1 2 2 1 1 2 1 2 2 1 1 . . . . 1 . . . 1 1 1 1 1 1 1 1 Gunslinging 1 | . 1 1 . . . . . . . . . . . . . . . . . . . . . . . . Exploded 2 | . . . . . 2 . 2 . . . . . . . . . . . . . . . . . . . Melee 1 | . . . . . . . . . . . . . . . 1 . . . . . 1 1 . 1 . 1 Uniques/NPCs Destroyed . | . . . . . . . . . . . . . . . . . . . . . . . . . . . Combat | -11 -10 -10 -9 -9 -8 -8 -8 -8 -6 -6 -6 -6 -5 -5 -5 -5 -5 -5 -4 -3 -3 -2 -2 -2 -1 -1 -------- Run | Yrd Mat Min Mat Min Mat Sto Gar Rec Fac Low Low Zio Pro Fac Ext Cet Arc Hub Fac Res Qua Res Tes Sec Acc Com Hostile Shots Fired 965 | . 71 25 47 29 97 100 97 4 20 . . . . . 50 7 4 2 . 23 47 91 8 45 61 137 Missed 355 | . 23 9 12 11 38 15 26 1 10 . . . . . 24 2 2 1 . 9 22 42 5 23 33 47 Hits 610 | . 48 16 35 18 59 85 71 3 10 . . . . . 26 5 2 1 . 14 25 49 3 22 28 90 Melee 10 | . . 3 . . . . . . . . . . . . . . . . . 7 . . . . . . Projectile 600 | . 48 13 35 18 59 85 71 3 10 . . . . . 26 5 2 1 . 7 25 49 3 22 28 90 AOE 2 | . . . . . . . . . . . . . . . . . . . . 2 . . . . . . Critical Strikes 30 | . . . 1 . 3 7 3 . . . . . . . 2 . . . . 4 2 1 . 1 2 4 Actively Blocked 5 | . . . . . . . . . . . . . . . . . . . . 2 . . . . . 3 Part Disruptions 6 | . . . . . . . . . . . . . . . . . . . . . . . . 1 . 5 Damage Taken 11799 | . 514 201 422 145 824 1418 873 41 191 . . . . . 642 136 58 41 . 382 576 1255 41 470 820 2749 Core 1960 | . 70 8 107 8 66 137 66 . 43 . . . . . 141 61 . . . 23 71 188 . 98 290 583 Absorbed by Shields 134 | . . . . . . . 36 . . . . . . . 98 . . . . . . . . . . . Reduced by Siege Mode 245 | . . . . . . . . . . . . . . . . . . . . . . . . . . 245 Redirected to Shielding 453 | . 5 . . . . . . . . . . . . . . . . . . 123 58 104 . . 29 134 Ignored by Resistances 254 | . . . . . . . . . . . . . . . . . . . . . . . . 44 . 210 Regen/Repaired (Parts) 2774 | . . . 124 . . 281 . . 15 . . . . . . . . . 51 . 434 713 52 352 81 671 Core Remaining (%) 80 | 100 . 68 . 71 . . . 51 . . . . 94 . . . . 79 100 . 83 . . 74 . . Volleys Fired 483 | 6 67 32 36 8 53 85 74 8 5 24 6 . 14 . 37 . . . 6 3 4 4 3 2 . 6 Largest 2 | 2 2 2 2 2 2 2 2 2 1 1 1 . 1 . 1 . . . 1 1 1 1 1 1 . 1 Hottest 150 | 40 60 62 105 112 112 118 115 100 90 90 90 . 90 . 90 . . . 90 90 5 120 10 10 . 150 Shots Fired 784 | 12 133 52 59 15 94 163 127 15 5 24 6 . 14 . 37 . . . 6 3 4 4 3 2 . 6 Gun 446 | 12 133 32 22 7 58 78 89 15 . . . . . . . . . . . . . . . . . . Cannon 320 | . . 20 37 8 31 85 34 . 5 24 6 . 14 . 37 . . . 6 3 . 4 . . . 6 Launcher 9 | . . . . . 5 . 4 . . . . . . . . . . . . . . . . . . . Special 9 | . . . . . . . . . . . . . . . . . . . . . 4 . 3 2 . . Kinetic 535 | 12 103 40 50 10 73 143 97 7 . . . . . . . . . . . . . . . . . . Thermal 177 | . . . 9 5 16 20 26 8 5 24 6 . 14 . 25 . . . 6 3 . 4 . . . 6 Explosive 9 | . . . . . 5 . 4 . . . . . . . . . . . . . . . . . . . Electromagnetic 54 | . 30 12 . . . . . . . . . . . . 12 . . . . . . . . . . . Robot Hit Streak 11 | 5 9 4 6 1 9 11 9 7 3 . . . . . 7 . . . . . 5 . 2 4 . 7 Robot Miss Streak 7 | 1 5 5 4 7 4 4 5 1 1 . . . . . 1 . . . . . 1 . 1 . . . Penetration Max 1 | . . . . . 1 1 . . . . . . . . . . . . . . . . . . . . Secondary Targets 11 | . 4 3 . . 1 . 2 1 . . . . . . . . . . . . . . . . . . Max Gunslinging Chain 1 | . 1 1 . . 1 . 1 1 . . . . . . . . . . . . . . . . . . Shots Hit Robots 520 | 10 83 14 31 4 67 97 62 8 14 . . . . . 40 . 2 . 7 15 14 6 5 7 6 28 Core Hits 225 | 3 27 8 13 3 40 45 30 7 7 . . . . . 10 . . . 3 4 5 4 1 1 3 11 Critical Kills 2 | . . . . . . 2 . . . . . . . . . . . . . . . . . . . . Critical Parts Destroyed 1 | . . . . . 1 . . . . . . . . . . . . . . . . . . . . . Critical Strikes 17 | . 2 . 1 1 4 3 . 1 1 . . . . . 1 . . . . 1 . . . 1 . 1 Burn 3 | . . . . . 2 . . 1 . . . . . . . . . . . . . . . . . . Meltdown 1 | . . . . . . 1 . . . . . . . . . . . . . . . . . . . . Destroy 2 | . . . . . 1 1 . . . . . . . . . . . . . . . . . . . . Blast 4 | . . . 1 1 1 1 . . . . . . . . . . . . . . . . . . . . Corrupt 2 | . 2 . . . . . . . . . . . . . . . . . . . . . . . . . Sever 3 | . . . . . . . . . . . . . . . . . . . . 1 . . . 1 . 1 Impale 2 | . . . . . . . . . 1 . . . . . 1 . . . . . . . . . . . Melee Attacks 321 | . . . . . . . . . 26 . 1 . . 8 29 . 13 4 24 29 41 36 14 32 13 51 Impact 9 | . . . . . . . . . 9 . . . . . . . . . . . . . . . . . Slashing 226 | . . . . . . . . . . . . . . . . . . . 11 28 41 36 14 32 13 51 Piercing 75 | . . . . . . . . . 17 . 1 . . 8 18 . 13 4 13 1 . . . . . . Sneak Attacks 30 | . . . . . . . . . 4 . . . . . 13 . 1 . 1 1 3 3 . 1 3 . Combat Hostiles . | . . . . . . . . . . . . . . . . . . . . . . . . . . . Follow-up Attacks . | . . . . . . . . . . . . . . . . . . . . . . . . . . . Damage Inflicted 16727 | 140 1174 190 705 97 1676 2291 1346 181 631 29 . . . . 1094 . 106 . 365 907 1217 786 269 571 781 2171 Guns 4430 | 140 1106 143 181 . 874 1033 772 181 . . . . . . . . . . . . . . . . . . Cannons 3500 | . . 47 524 97 400 1258 424 . 108 29 . . . . 450 . . . . . . . . . . 163 Explosions 612 | . 60 . . . 402 . 150 . . . . . . . . . . . . . . . . . . . Melee 8177 | . . . . . . . . . 523 . . . . . 644 . 106 . 365 907 1217 786 269 571 781 2008 Ramming 8 | . 8 . . . . . . . . . . . . . . . . . . . . . . . . . Kinetic 5874 | 140 909 122 560 97 1004 1993 972 77 . . . . . . . . . . . . . . . . . . Thermal 1543 | . 60 . 145 . 270 298 224 104 108 29 . . . . 142 . . . . . . . . . . 163 Explosive 552 | . . . . . 402 . 150 . . . . . . . . . . . . . . . . . . . Electromagnetic 573 | . 197 68 . . . . . . . . . . . . 308 . . . . . . . . . . . Impact 80 | . . . . . . . . . 80 . . . . . . . . . . . . . . . . . Slashing 6820 | . . . . . . . . . . . . . . . . . . . 281 907 1217 786 269 571 781 2008 Piercing 1277 | . . . . . . . . . 443 . . . . . 644 . 106 . 84 . . . . . . . Highest Corruption 11 | . . . . . . . . . . . . . . . . . . . 4 . 3 . . 1 . 11 Average Corruption 2 | . . . . . . . . . . . . . . . . . . . 4 . 2 . . 1 . 2 Corruption Purged . | . . . . . . . . . . . . . . . . . . . . . . . . . . . Corruption Blocked . | . . . . . . . . . . . . . . . . . . . . . . . . . . . Effects 6 | . . . . . . . . . . . . . . . . . . . 2 . 3 . . . . 1 Matter Fused 3 | . . . . . . . . . . . . . . . . . . . 1 . 2 . . . . . Energy Discharges 2 | . . . . . . . . . . . . . . . . . . . 1 . . . . . . 1 Data Loss (minor) 1 | . . . . . . . . . . . . . . . . . . . . . 1 . . . . . Overload Shots 2 | . . . . . . . . . . . . . . . . . . . . . . . . . . 2 Overflow Damage 1843 | . . . 29 4 14 1 4 . 135 21 . . . . 210 . 32 . . 156 239 122 64 294 216 302 Projectiles 65 | . . . 29 4 . 1 4 . . 21 . . . . 6 . . . . . . . . . . . Explosions 14 | . . . . . 14 . . . . . . . . . . . . . . . . . . . . . Melee 1764 | . . . . . . . . . 135 . . . . . 204 . 32 . . 156 239 122 64 294 216 302 Knockbacks 21 | . . . 8 1 . 8 3 . 1 . . . . . . . . . . . . . . . . . Impact 1 | . . . . . . . . . 1 . . . . . . . . . . . . . . . . . Kinetic 19 | . . . 7 1 . 8 3 . . . . . . . . . . . . . . . . . . . Secondary 1 | . . . 1 . . . . . . . . . . . . . . . . . . . . . . . Self-Inflicted Damage 39 | . . . . . 16 . 23 . . . . . . . . . . . . . . . . . . . Shots 2 | . . . . . 1 . 1 . . . . . . . . . . . . . . . . . . . Rammed 1 | . 1 . . . . . . . . . . . . . . . . . . . . . . . . . Targets Rammed 1 | . 1 . . . . . . . . . . . . . . . . . . . . . . . . . Kicked . | . . . . . . . . . . . . . . . . . . . . . . . . . . . Crushed . | . . . . . . . . . . . . . . . . . . . . . . . . . . . Highest Temperature 358 | . 54 160 131 191 242 213 181 53 142 165 130 . 358 2 266 16 2 2 196 203 . 249 23 . . . Average Temperature 68 | . 28 78 32 85 26 54 47 22 76 73 53 . 125 2 71 8 2 2 59 82 . 83 11 . . . Received Heat Transfer 2487 | . 201 . 225 . 171 855 367 18 . . . . . . 137 18 . . . 9 . 171 9 9 81 216 Effects 3 | . . . . . . . . . . . . . 1 . . . . . . . . 2 . . . . Shutdowns 1 | . . . . . . . . . . . . . 1 . . . . . . . . . . . . . Interference 2 | . . . . . . . . . . . . . . . . . . . . . . 2 . . . . Siege Activations 1 | . . . . . . . . . . . . . . . . . . . . . . . . . . 1 Total Turns 21 | . . . . . . . . . . . . . . . . . . . . . . . . . . 21 Longest Duration 21 | . . . . . . . . . . . . . . . . . . . . . . . . . . 21 Martial Activations . | . . . . . . . . . . . . . . . . . . . . . . . . . . . Shielding Activations . | . . . . . . . . . . . . . . . . . . . . . . . . . . . Robots Disrupted . | . . . . . . . . . . . . . . . . . . . . . . . . . . . Combat Hostiles . | . . . . . . . . . . . . . . . . . . . . . . . . . . . Robots Corrupted 3 | . 1 . . . . . . . 1 . . . . . 1 . . . . . . . . . . . Combat Hostiles 2 | . 1 . . . . . . . . . . . . . 1 . . . . . . . . . . . Parts Fried 2 | . 1 . . . . . . . 1 . . . . . . . . . . . . . . . . . Impact Corruptions 2 | . . . . . . . . . 2 . . . . . . . . . . . . . . . . . Robots Melted 1 | . . . . . . 1 . . . . . . . . . . . . . . . . . . . . Combat Hostiles . | . . . . . . . . . . . . . . . . . . . . . . . . . . . Parts Melted 5 | . . . . . 1 2 . . 1 . . . . . 1 . . . . . . . . . . . Heat Transferred 2300 | . 50 . 259 . 629 407 296 259 148 37 . . . . 185 . . . . . . . . . . 30 Parts Sabotaged . | . . . . . . . . . . . . . . . . . . . . . . . . . . . Parts Stolen . | . . . . . . . . . . . . . . . . . . . . . . . . . . . Parts Stripped . | . . . . . . . . . . . . . . . . . . . . . . . . . . . Power Chain Reactions 1 | . 1 . . . . . . . . . . . . . . . . . . . . . . . . . Alert | -11 -10 -10 -9 -9 -8 -8 -8 -8 -6 -6 -6 -6 -5 -5 -5 -5 -5 -5 -4 -3 -3 -2 -2 -2 -1 -1 ------- Run | Yrd Mat Min Mat Min Mat Sto Gar Rec Fac Low Low Zio Pro Fac Ext Cet Arc Hub Fac Res Qua Res Tes Sec Acc Com Maximum Alert Level 3 | . . . . . 1 1 3 2 2 . . . . . 2 1 . . . . . 3 1 1 . 2 Low Security (%) 64 | 100 100 100 100 100 53 69 14 . 5 . . . . 100 27 . 100 100 100 100 100 58 80 98 100 51 Level 1 18 | . . . . . 46 30 17 6 80 . . . . . 44 100 . . . . . 8 19 1 . 27 Level 2 14 | . . . . . . . 43 93 14 . . . . . 28 . . . . . . 31 . . . 21 Level 3 2 | . . . . . . . 24 . . . . . . . . . . . . . . 1 . . . . Level 4 . | . . . . . . . . . . . . . . . . . . . . . . . . . . . Level 5 . | . . . . . . . . . . . . . . . . . . . . . . . . . . . High Security . | . . . . . . . . . . . . . . . . . . . . . . . . . . . Max Security . | . . . . . . . . . . . . . . . . . . . . . . . . . . . Peak Influence 898 | 5 77 80 96 41 394 302 898 542 463 . . . . 30 593 277 113 68 28 17 96 704 239 209 138 428 Initial 463 | . . 10 . 6 . 146 76 403 463 . . . . . . 277 98 30 28 7 . 22 239 85 124 83 Average 175 | . 32 17 25 3 176 159 490 465 293 . . . . 3 321 262 99 27 3 3 42 239 151 99 47 229 Influence Increases 8738 | 10 337 216 320 57 655 672 902 297 516 . . . . 52 1307 . 30 58 75 118 295 1351 261 376 242 591 Destroy 0b10 Robot/C 3020 | . 240 160 200 40 400 400 460 80 80 . . . . . 600 . . . . . 80 40 . 20 . 220 Destroy 0b10 Robot/NC 305 | 10 35 . 15 5 25 45 . 20 20 . . . . . 20 . . . 15 20 20 15 5 10 20 5 Destroy Leader 512 | . 44 30 52 10 116 88 20 . 14 . . . . . 54 . . . 6 6 12 10 2 10 6 32 Allied During Kill 351 | . . 6 . . . . 22 12 . . . . . . 311 . . . . . . . . . . . Successful Hack 299 | . . . 31 . 7 14 26 5 . . . . . 6 18 . . . . 14 42 47 41 . 15 33 Select Force Hacks 230 | . . . . . . . . 180 . . . . . . . . . 50 . . . . . . . . Disable Machine 420 | . 15 15 15 . 30 60 . . . . . . . . 30 . 30 . 15 . 45 . 60 90 . 15 Anti-Garrison Action 300 | . . . . . . . 300 . . . . . . . . . . . . . . . . . . . Destroy Structure 496 | . 3 5 7 2 47 20 74 . 12 . . . . 16 64 . . 8 24 18 36 84 18 6 21 31 Advance Influence 300 | . . . . . . . . . 300 . . . . . . . . . . . . . . . . . Partial Spotted 705 | . . . . . . . . . 45 . . . . . 90 . . . 15 60 15 225 75 30 90 60 Lose Combat Pursuer 1800 | . . . . . 30 45 . . 45 . . . . 30 120 . . . . . 45 930 60 210 90 195 Influence Decreases 8390 | 10 310 243 303 74 307 902 122 805 721 149 36 . . 50 812 250 189 88 118 133 254 966 535 319 320 374 Entered New Map 1944 | . . 17 . 11 . 202 42 495 227 69 8 . . . 2 220 149 58 30 8 . 19 187 67 85 48 Time Decay 4437 | 10 300 193 263 53 297 490 . 310 334 80 28 . . 50 470 10 40 30 88 96 254 298 198 222 77 246 Search Patrol Dispatched 150 | . . . . . . . . . . . . . . . . . . . . . . 150 . . . . Lost Part 320 | . 10 . . 10 10 60 40 . 10 . . . . . 40 . . . . 10 . 30 . 10 10 80 Lost Ally 432 | . . 33 . . . . 40 . . . . . . . 300 20 . . . . . 19 . 20 . . Purge Threat 1107 | . . . 40 . . 150 . . 150 . . . . . . . . . . 19 . 450 150 . 148 . Squads Dispatched 45 | . 1 1 1 . 2 2 . . 6 . . . . 1 3 . . 1 2 4 4 3 3 4 3 4 Investigation 9 | . . 1 . . 1 1 . . 2 . . . . 1 1 . . 1 . . . . . . 1 . Extermination 19 | . . . . . . . . . 1 . . . . . . . . . 2 2 2 3 3 2 1 3 Reinforcement 17 | . 1 . 1 . 1 1 . . 3 . . . . . 2 . . . . 2 2 . . 2 1 1 Assault . | . . . . . . . . . . . . . . . . . . . . . . . . . . . Garrison . | . . . . . . . . . . . . . . . . . . . . . . . . . . . Intercept . | . . . . . . . . . . . . . . . . . . . . . . . . . . . Searches Triggered 1 | . . . . . . . . . . . . . . . . . . . . . . 1 . . . . Construction Impeded 1 | . . . . . . . . . . . . . . . 1 . . . . . . . . . . . Haulers Reinforced 2 | . . . . . . . . . 2 . . . . . . . . . . . . . . . . . Active Scanning Responses . | . . . . . . . . . . . . . . . . . . . . . . . . . . . Cargo Convoy Interrupts . | . . . . . . . . . . . . . . . . . . . . . . . . . . . Stealth | -11 -10 -10 -9 -9 -8 -8 -8 -8 -6 -6 -6 -6 -5 -5 -5 -5 -5 -5 -4 -3 -3 -2 -2 -2 -1 -1 --------- Run | Yrd Mat Min Mat Min Mat Sto Gar Rec Fac Low Low Zio Pro Fac Ext Cet Arc Hub Fac Res Qua Res Tes Sec Acc Com Distress Signals 21 | . 3 . 1 . 1 1 . . 1 . . . . 2 . 1 . 1 . . 1 3 . 4 1 1 Communications Jammed 28 | . . . . . . . . . . . . . . . 2 . . . . 5 . 2 8 . 11 . Distress Signals 28 | . . . . . . . . . . . . . . . 2 . . . . 5 . 2 8 . 11 . Times Spotted 436 | . 22 7 26 6 30 27 23 3 13 . 1 . . 6 38 5 5 8 4 22 24 81 10 23 24 28 Peak Tracking Total 20 | . 5 3 7 15 7 7 5 2 4 . 1 . . 4 8 5 4 8 2 14 6 20 5 9 14 8 Tactical Retreats 46 | . . . . 1 2 2 . . 2 . . . . 1 5 . . . . . 3 15 3 5 2 5 Traps | -11 -10 -10 -9 -9 -8 -8 -8 -8 -6 -6 -6 -6 -5 -5 -5 -5 -5 -5 -4 -3 -3 -2 -2 -2 -1 -1 ------- Run | Yrd Mat Min Mat Min Mat Sto Gar Rec Fac Low Low Zio Pro Fac Ext Cet Arc Hub Fac Res Qua Res Tes Sec Acc Com Traps Triggered 22 | . . . . . . 2 9 . 1 . . . . . 4 . . . 2 1 . 1 1 . 1 . Indirectly . | . . . . . . . . . . . . . . . . . . . . . . . . . . . Trap Hack Attempts . | . . . . . . . . . . . . . . . . . . . . . . . . . . . Triggered . | . . . . . . . . . . . . . . . . . . . . . . . . . . . Disarmed . | . . . . . . . . . . . . . . . . . . . . . . . . . . . Reprogrammed . | . . . . . . . . . . . . . . . . . . . . . . . . . . . Reused . | . . . . . . . . . . . . . . . . . . . . . . . . . . . Traps Extracted . | . . . . . . . . . . . . . . . . . . . . . . . . . . . Installed . | . . . . . . . . . . . . . . . . . . . . . . . . . . . Triggered . | . . . . . . . . . . . . . . . . . . . . . . . . . . . Machines | -11 -10 -10 -9 -9 -8 -8 -8 -8 -6 -6 -6 -6 -5 -5 -5 -5 -5 -5 -4 -3 -3 -2 -2 -2 -1 -1 ---------- Run | Yrd Mat Min Mat Min Mat Sto Gar Rec Fac Low Low Zio Pro Fac Ext Cet Arc Hub Fac Res Qua Res Tes Sec Acc Com Machines Disabled 31 | . 1 1 1 . 2 4 2 . . . . . . . 3 . 2 . 1 . 3 . 4 6 . 1 Max in Single Turn 1 | . 1 1 1 . 1 1 1 . . . . . . . 1 . 1 . 1 . 1 . 1 1 . 1 Garrison Access 9 | . . . . . . . . . 2 . . . . . . . . . 1 1 1 2 1 1 . . Garrison Relay 2 | . . . . . . . 2 . . . . . . . . . . . . . . . . . . . Network Hub 1 | . . . . . . . . . . . . . . . . . . 1 . . . . . . . . Machines Repaired . | . . . . . . . . . . . . . . . . . . . . . . . . . . . Machines Dismantled . | . . . . . . . . . . . . . . . . . . . . . . . . . . . Machines Sabotaged 1 | . . . . . . . . . . . . . . . . . . 1 . . . . . . . . Overloaded Fab Kills . | . . . . . . . . . . . . . . . . . . . . . . . . . . . Hacking | -11 -10 -10 -9 -9 -8 -8 -8 -8 -6 -6 -6 -6 -5 -5 -5 -5 -5 -5 -4 -3 -3 -2 -2 -2 -1 -1 --------- Run | Yrd Mat Min Mat Min Mat Sto Gar Rec Fac Low Low Zio Pro Fac Ext Cet Arc Hub Fac Res Qua Res Tes Sec Acc Com Machines Accessed 118 | . 1 1 7 . 6 11 4 8 8 1 . . . 6 10 . . 1 9 4 11 7 9 8 3 3 Terminals 79 | . 1 . 5 . 4 8 4 2 3 . . . . 4 10 . . 1 5 3 7 5 6 6 2 3 Fabricators 6 | . . . . . . . . . 2 . . . . 2 . . . . 1 . . . . . 1 . Repair Stations 8 | . . . 1 . . 2 . . 1 . . . . . . . . . 1 . 2 . 1 . . . Recycling Units 7 | . . . . . . . . 6 . . . . . . . . . . 1 . . . . . . . Scanalyzers 5 | . . . 1 . 1 . . . . . . . . . . . . . . . 1 . 1 1 . . Garrison Access 11 | . . . . . 1 1 . . 2 . . . . . . . . . 1 1 1 2 1 1 . . Total Hacks 336 | . 2 1 23 . 20 27 7 13 15 1 . . . 12 19 . . 1 45 24 35 24 38 16 8 5 Successful 179 | . 1 1 12 . 5 10 3 9 11 1 . . . 8 10 . . 1 27 12 17 13 20 11 5 2 Failed 156 | . 1 . 11 . 15 17 4 4 4 . . . . 4 9 . . . 17 12 18 11 18 5 3 3 Catastrophic 22 | . . . 1 . 3 1 2 . 1 . . . . . . . . . 2 3 2 4 1 . 1 1 Database Lockouts 1 | . . . . . . . . . . . . . . . . . . . 1 . . . . . . . Manual 120 | . . . 5 . 7 1 1 9 4 . . . . 6 1 . . 1 24 14 14 11 17 . 3 2 Terminals 257 | . 2 . 19 . 14 18 7 3 7 . . . . 7 19 . . 1 35 22 29 21 30 12 6 5 Fabricators 13 | . . . . . . . . . 4 . . . . 5 . . . . 2 . . . . . 2 . Repair Stations 25 | . . . 2 . . 8 . . 2 . . . . . . . . . 4 . 4 . 5 . . . Recycling Units 12 | . . . . . . . . 10 . . . . . . . . . . 2 . . . . . . . Scanalyzers 10 | . . . 2 . 4 . . . . . . . . . . . . . . . 1 . 1 2 . . Garrison Access 17 | . . . . . 2 1 . . 2 . . . . . . . . . 2 2 1 3 2 2 . . Terminal Hacks 103 | . 1 1 9 . 2 5 3 2 3 1 . . . 4 10 . . . 14 9 9 7 12 7 2 2 Record 5 | . . . . . . . . . . . . . . . . . . . . . 2 . 3 . . . Part Schematic 3 | . . . . . . . . . . . . . . 2 . . . . . 1 . . . . . . Prototype ID Bank 13 | . . . 1 . 1 1 . 1 . . . . . . 1 . . . 7 . . . 1 . . . Open Door 18 | . . 1 . . . 3 1 . . 1 . . . 1 6 . . . . 1 . . . 4 . . Level Access Points 4 | . . . . . . . . . . . . . . . . . . . 1 . 1 . 1 1 . . Branch Access Points 7 | . . . 1 . 1 . . . 1 . . . . . . . . . 1 1 . 1 . . 1 . Emergency Access Points 9 | . . . 3 . . . 1 . . . . . . . . . . . 1 2 . 1 . . . 1 Machine Index 2 | . . . . . . . . . . . . . . . . . . . 1 . 1 . . . . . Terminal Index 2 | . . . . . . . . . . . . . . . 1 . . . 1 . . . . . . . Fabricator Index 1 | . . . . . . . . . . . . . . . . . . . . . . . . . . 1 Repair Station Index 1 | . . . . . . . . . 1 . . . . . . . . . . . . . . . . . Scanalyzer Index 1 | . . . . . . . . . . . . . . . . . . . . . . . 1 . . . Garrison Index 1 | . . . . . . . . . . . . . . . . . . . 1 . . . . . . . Alert Level 1 | . . . 1 . . . . . . . . . . . . . . . . . . . . . . . Unreport Threat 9 | . . . 1 . . 1 . . 1 . . . . . . . . . . 1 . 3 1 . 1 . Locate Traps 2 | . . . . . . . . . . . . . . . . . . . . 1 . . 1 . . . Security Status 1 | . . . . . . . . . . . . . . . . . . . . . 1 . . . . . Recall Investigation 1 | . . . . . . . . . . . . . . 1 . . . . . . . . . . . . Recall Extermination 3 | . . . . . . . . . . . . . . . . . . . . . . 2 1 . . . Recall Reinforcements 2 | . . . . . . . . . . . . . . . 1 . . . . . 1 . . . . . Hauler Manifests 3 | . 1 . 1 . . . . . . . . . . . . . . . . . 1 . . . . . Zone Layout 13 | . . . 1 . . . . 1 . . . . . . 1 . . . 1 2 2 . 3 2 . . Patrol Navigation 1 | . . . . . . . 1 . . . . . . . . . . . . . . . . . . . Fabricator Hacks 11 | . . . . . . . . . 3 . . . . 4 . . . . 2 . . . . . 2 . Load Schematic 6 | . . . . . . . . . 2 . . . . 2 . . . . 1 . . . . . 1 . Build 5 | . . . . . . . . . 1 . . . . 2 . . . . 1 . . . . . 1 . Repair Station Hacks 18 | . . . 2 . . 4 . . 2 . . . . . . . . . 4 . 2 . 4 . . . Scan Component 9 | . . . 1 . . 2 . . 1 . . . . . . . . . 2 . 1 . 2 . . . Repair 9 | . . . 1 . . 2 . . 1 . . . . . . . . . 2 . 1 . 2 . . . Recycling Unit Hacks 3 | . . . . . . . . 1 . . . . . . . . . . 2 . . . . . . . Retrieve Components 3 | . . . . . . . . 1 . . . . . . . . . . 2 . . . . . . . Scanalyzer 5 | . . . . . 3 . . . . . . . . . . . . . . . . . . 2 . . Insert Component 3 | . . . . . 1 . . . . . . . . . . . . . . . . . . 2 . . Analyze 2 | . . . . . 2 . . . . . . . . . . . . . . . . . . . . . Garrison Access Hacks 15 | . . . . . . 1 . . 2 . . . . . . . . . 2 2 1 3 2 2 . . Unlock Access 1 | . . . . . . 1 . . . . . . . . . . . . . . . . . . . . Seal Access 9 | . . . . . . . . . 2 . . . . . . . . . 1 1 1 2 1 1 . . Coupler Status 5 | . . . . . . . . . . . . . . . . . . . 1 1 . 1 1 1 . . Unauthorized Hacks 24 | . . . 1 . . . . 6 1 . . . . . . . . 1 3 1 5 3 2 . 1 . Terminals 14 | . . . . . . . . . . . . . . . . . . 1 3 1 4 3 1 . 1 . Track 2 | . . . . . . . . . . . . . . . . . . . 1 . 1 . . . . . Assimilate 3 | . . . . . . . . . . . . . . . . . . . . . 1 2 . . . . Botnet 7 | . . . . . . . . . . . . . . . . . . . 2 1 1 1 1 . 1 . Operators 1 | . . . . . . . . . . . . . . . . . . . . . 1 . . . . . Sabotage 1 | . . . . . . . . . . . . . . . . . . 1 . . . . . . . . Fabricators 1 | . . . . . . . . . 1 . . . . . . . . . . . . . . . . . Recompile 1 | . . . . . . . . . 1 . . . . . . . . . . . . . . . . . Repair Stations . | . . . . . . . . . . . . . . . . . . . . . . . . . . . Recycling Units 6 | . . . . . . . . 6 . . . . . . . . . . . . . . . . . . Tunnel 6 | . . . . . . . . 6 . . . . . . . . . . . . . . . . . . Scanalyzers 3 | . . . 1 . . . . . . . . . . . . . . . . . 1 . 1 . . . Researchers 3 | . . . 1 . . . . . . . . . . . . . . . . . 1 . 1 . . . Garrison Access . | . . . . . . . . . . . . . . . . . . . . . . . . . . . Data Cores Recovered 2 | . . . . . . . . . . . . . . . . . . . . . 1 . . 1 . . Used 1 | . . . . . . . . . . . . . . . . . . . . . . . . 1 . . Hacking Detections 70 | . 1 . 4 . 5 7 3 2 5 . . . . 5 10 . . . 5 2 7 3 4 2 3 2 Full Trace Events 7 | . . . . . 1 1 2 . 1 . . . . 1 . . . . . . . . . . 1 . Feedback Events . | . . . . . . . . . . . . . . . . . . . . . . . . . . . Feedback Blocked . | . . . . . . . . . . . . . . . . . . . . . . . . . . . Robot Schematics Acquired 3 | . . . . . . . . . . . . . . . . . . . . . 1 . . 2 . . Robots Built . | . . . . . . . . . . . . . . . . . . . . . . . . . . . Authchips . | . . . . . . . . . . . . . . . . . . . . . . . . . . . Time . | . . . . . . . . . . . . . . . . . . . . . . . . . . . Total Robot Build Rating . | . . . . . . . . . . . . . . . . . . . . . . . . . . . Part Schematics Acquired 10 | . . . . . 1 . . . . . . . . 2 . . . . . 1 2 . . 4 . . Parts Built 5 | . . . . . . . . . 1 . . . . 2 . . . . 1 . . . . . 1 . Authchips 2 | . . . . . . . . . . . . . . 1 . . . . 1 . . . . . . . Time 280 | . . . . . . . . . 58 . . . . 96 . . . . 76 . . . . . 50 . Total Part Build Rating 19 | . . . . . . . . . 3 . . . . 6 . . . . 5 . . . . . 5 . Parts Repaired 9 | . . . 1 . . 2 . . 1 . . . . . . . . . 2 . 1 . 2 . . . Time 388 | . . . 26 . . 76 . . 30 . . . . . . . . . 120 . 26 . 110 . . . Parts Recycled . | . . . . . . . . . . . . . . . . . . . . . . . . . . . Recycled Matter . | . . . . . . . . . . . . . . . . . . . . . . . . . . . Retrieved Matter . | . . . . . . . . . . . . . . . . . . . . . . . . . . . Retrieved Components 2 | . . . . . . . . 2 . . . . . . . . . . . . . . . . . . Parts Scanalyzed 1 | . . . . . 1 . . . . . . . . . . . . . . . . . . . . . Part Schematics Acquired 1 | . . . . . 1 . . . . . . . . . . . . . . . . . . . . . Parts Damaged . | . . . . . . . . . . . . . . . . . . . . . . . . . . . Bothacking | -11 -10 -10 -9 -9 -8 -8 -8 -8 -6 -6 -6 -6 -5 -5 -5 -5 -5 -5 -4 -3 -3 -2 -2 -2 -1 -1 ------------ Run | Yrd Mat Min Mat Min Mat Sto Gar Rec Fac Low Low Zio Pro Fac Ext Cet Arc Hub Fac Res Qua Res Tes Sec Acc Com Used RIF Installer 1 | . . . . . . . 1 . . . . . . . . . . . . . . . . . . . Robots Hacked 5 | . . . . . . . . . . . . . . . . . . . . . 2 . 2 1 . . Non-combat . | . . . . . . . . . . . . . . . . . . . . . . . . . . . Combat 5 | . . . . . . . . . . . . . . . . . . . . . 2 . 2 1 . . Robot Hacks Applied 6 | . . . . . . . . . . . . . . . . . . . . . 3 . 2 1 . . find_scanalyzer 1 | . . . . . . . . . . . . . . . . . . . . . 1 . . . . . disable_scanner 4 | . . . . . . . . . . . . . . . . . . . . . 2 . 2 . . . formatsys_low 1 | . . . . . . . . . . . . . . . . . . . . . . . . 1 . . Relay Couplers Released 16 | . . . . . . . 10 . . . . . . . . . . . . 3 2 1 . . . . Machine Destruction 16 | . . . . . . . 10 . . . . . . . . . . . . 3 2 1 . . . . Attached 2 | . . . . . . . . . . . . . . . . . . . . . 2 . . . . . Fabnet Peak Effective % . | . . . . . . . . . . . . . . . . . . . . . . . . . . . Robots Rewired 19 | . . . . . . . 5 . . . . . . . 14 . . . . . . . . . . . Allies Hacked . | . . . . . . . . . . . . . . . . . . . . . . . . . . . Hacks Repelled . | . . . . . . . . . . . . . . . . . . . . . . . . . . . Allies | -11 -10 -10 -9 -9 -8 -8 -8 -8 -6 -6 -6 -6 -5 -5 -5 -5 -5 -5 -4 -3 -3 -2 -2 -2 -1 -1 -------- Run | Yrd Mat Min Mat Min Mat Sto Gar Rec Fac Low Low Zio Pro Fac Ext Cet Arc Hub Fac Res Qua Res Tes Sec Acc Com Total Allies 31 | . . 2 . . . . 5 . . . . . . . 21 . . . . . . 2 . 1 . . Largest Group 11 | . . 2 . . . . 3 3 . . . . . . 11 1 . . . . . 1 . 1 . . Highest-Rated Group 462 | . . 45 . . . . 56 45 . . . . . . 462 25 . . . . . 45 . 62 . . Highest-Rated Ally 159 | . . 31 . . . . 31 15 . . . . . . 159 25 . . . . . 45 . 62 . . Total Orders 12 | . . . . . . . 2 1 . . . . . . 7 . . . . . . . . 2 . . STAY 7 | . . . . . . . 1 1 . . . . . . 4 . . . . . . . . 1 . . FOLLOW 5 | . . . . . . . 1 . . . . . . . 3 . . . . . . . . 1 . . Ally Attacks 190 | . . 8 . . . . 17 3 . . . . . . 160 . . . . . . . . 2 . . Total Damage 4005 | . . 103 . . . . 354 40 . . . . . . 3508 . . . . . . . . . . . Kills 37 | . . 1 . . . . 6 1 . . . . . . 29 . . . . . . . . . . . Allies Corrupted . | . . . . . . . . . . . . . . . . . . . . . . . . . . . Allies Melted . | . . . . . . . . . . . . . . . . . . . . . . . . . . . Intel | -11 -10 -10 -9 -9 -8 -8 -8 -8 -6 -6 -6 -6 -5 -5 -5 -5 -5 -5 -4 -3 -3 -2 -2 -2 -1 -1 ------- Run | Yrd Mat Min Mat Min Mat Sto Gar Rec Fac Low Low Zio Pro Fac Ext Cet Arc Hub Fac Res Qua Res Tes Sec Acc Com Active Infowar (turns) 11384 | . 269 693 837 229 535 420 631 682 752 162 213 41 258 343 1197 29 82 66 589 481 574 694 401 465 203 538 Optics 8401 | . . . . . . . 631 682 752 162 213 41 258 343 1197 29 82 66 589 481 574 694 401 465 203 538 Sensors 6012 | . . . . . . 76 . . 693 162 213 41 258 343 931 29 82 64 589 478 568 684 323 274 203 1 IFF 47 | . . . . . . . . . 43 . . . . . . . . . . . 4 . . . . . Structural 30 | . . . . . . . . . . . . . . . 30 . . . . . . . . . . . Seismic 2028 | . 269 693 837 229 . . . . . . . . . . . . . . . . . . . . . . T.N.C. 879 | . . . . . 535 344 . . . . . . . . . . . . . . . . . . . . Cloaking 1 | . . . . . . . . . 1 . . . . . . . . . . . . . . . . . Jamming 2969 | . . . . . . . . . . . . . . 87 243 . . 7 502 467 73 460 401 257 200 272 ECM 1 | . . . . . . . . . 1 . . . . . . . . . . . . . . . . . Robot Analysis Total . | . . . . . . . . . . . . . . . . . . . . . . . . . . . Derelict Logs Recovered 5 | . . 2 . 1 . . . . . . 2 . . . . . . . . . . . . . . . Drone Launches . | . . . . . . . . . . . . . . . . . . . . . . . . . . . Drone Recoveries . | . . . . . . . . . . . . . . . . . . . . . . . . . . . Exploration | -11 -10 -10 -9 -9 -8 -8 -8 -8 -6 -6 -6 -6 -5 -5 -5 -5 -5 -5 -4 -3 -3 -2 -2 -2 -1 -1 ------------- Run | Yrd Mat Min Mat Min Mat Sto Gar Rec Fac Low Low Zio Pro Fac Ext Cet Arc Hub Fac Res Qua Res Tes Sec Acc Com Turns Passed 14430 | 123 862 856 917 449 918 1296 1239 682 752 162 213 41 258 343 1197 29 82 66 589 481 574 694 401 465 203 538 Spaces Moved 17791 | 64 403 571 507 282 476 546 584 467 966 337 625 168 540 600 1499 83 78 165 820 1157 1120 1921 988 1375 498 951 Core 9 | 9 . . . . . . . . . . . . . . . . . . . . . . . . . . Treads 391 | 55 325 . . . . 1 . . . . . . . . . . . . . . . . . . . 10 Legs . | . . . . . . . . . . . . . . . . . . . . . . . . . . . Wheels 3510 | . 78 571 507 282 476 545 584 467 . . . . . . . . . . . . . . . . . . Hover . | . . . . . . . . . . . . . . . . . . . . . . . . . . . Flight 13844 | . . . . . . . . . 966 337 625 168 540 600 1499 83 78 165 820 1157 1120 1921 988 1370 485 922 Fastest Speed 13 | 50 130 130 130 150 150 135 140 140 24 24 24 24 24 23 23 23 23 23 21 18 20 18 16 15 15 13 Average Speed 48 | 145 154 130 146 150 150 168 140 140 26 24 24 24 24 24 23 23 23 23 21 20 20 21 19 17 15 15 Slowest Speed 560 | 160 160 130 150 150 150 560 140 140 100 24 24 24 24 26 93 23 23 26 93 23 21 25 21 91 15 160 Overloaded Moves . | . . . . . . . . . . . . . . . . . . . . . . . . . . . Propulsion Burnouts . | . . . . . . . . . . . . . . . . . . . . . . . . . . . Robots Hopped 147 | . . . . . . . . . 4 . 1 . . 5 18 3 . 1 5 22 15 33 13 14 5 8 Potential Cave-ins 20 | . . 8 . . . . . . . . . . . . 8 . . . . . . 2 . . . 2 Cave-ins Triggered . | . . . . . . . . . . . . . . . . . . . . . . . . . . . Teleports 2 | . . . . . . . . . . . . . . . . . . . . . 1 . . 1 . . Spacefolds 12 | . . . . . . . . . . . . . . . . . . . . . . . . 2 4 6 Exploration Rate (%) 52 | 7 59 93 49 68 58 64 71 93 19 53 66 13 68 14 83 53 76 11 26 29 89 49 88 67 15 29 Regions Visited 26 Branch Regions 16 Pre-discovered Areas 8 | . . . . 1 . . . 6 . . . 1 . . . . . . . . . . . . . . Known Exits Taken 20 | . . . 1 . 1 1 . . 1 1 1 1 1 1 1 1 1 1 1 1 1 1 1 1 1 . Unknown Exits Taken 5 | 1 1 1 . 1 . . . 1 . . . . . . . . . . . . . . . . . . Scrap Searched 7 | . . 1 . . . . . . . 1 2 . 3 . . . . . . . . . . . . . Spaces Dug 133 | . . 2 . . 1 3 . . 11 3 4 . . 8 7 . . 4 12 9 18 28 6 2 7 8 Terrain Destroyed 270 | . 2 13 5 2 51 19 14 . 12 13 4 . 10 8 18 . . 4 13 9 18 30 6 2 7 10 Melee 111 | . . . . . . . . . 11 . 1 . . 8 3 . . 4 9 9 18 26 6 2 7 7 Projectile 97 | . . 13 5 2 5 19 . . 1 13 3 . 10 . 15 . . . 4 . . 4 . . . 3 AOE 62 | . 2 . . . 46 . 14 . . . . . . . . . . . . . . . . . . . Terrain Rammed . | . . . . . . . . . . . . . . . . . . . . . . . . . . . Walls Destroyed . | . . . . . . . . . . . . . . . . . . . . . . . . . . . Machines Disabled . | . . . . . . . . . . . . . . . . . . . . . . . . . . . Actions | -11 -10 -10 -9 -9 -8 -8 -8 -8 -6 -6 -6 -6 -5 -5 -5 -5 -5 -5 -4 -3 -3 -2 -2 -2 -1 -1 --------- Run | Yrd Mat Min Mat Min Mat Sto Gar Rec Fac Low Low Zio Pro Fac Ext Cet Arc Hub Fac Res Qua Res Tes Sec Acc Com Total 22064 | 79 508 634 636 293 599 759 907 484 1408 393 678 167 653 777 2242 89 115 182 1175 1328 1369 2103 1151 1520 585 1230 Wait 2738 | . 18 18 29 1 11 75 76 6 352 33 48 . 100 163 576 10 25 9 275 130 173 141 127 95 74 173 Move 17470 | 63 402 570 506 281 475 545 583 466 957 336 622 167 539 589 1467 78 77 162 809 1115 1090 1860 965 1344 478 924 Hop 123 | . . . . . . . . . 4 . 1 . . 5 13 1 . 1 5 19 14 27 9 13 5 6 Pick Up 155 | 4 9 7 24 1 18 13 5 2 9 . . . . 3 8 . . . 4 5 13 7 2 13 3 5 Fast Attach 94 | 6 2 3 2 . 5 5 1 . 10 . . . . 3 6 . . 2 5 9 4 5 13 4 . 9 Attach 81 | . 1 . 3 2 3 6 3 . 13 . . . . 1 4 . . . 3 2 11 5 2 4 2 16 Detach 54 | . 1 3 2 . 2 2 . . 5 . . . . 1 1 . . . . 3 8 3 4 1 1 17 Swap 74 | . 5 1 7 . 8 8 7 . 6 . . . . . 11 . . 2 2 2 2 5 1 4 . 3 Drop 187 | . 2 . 27 . 24 12 4 2 21 . . . . 4 11 . . 2 6 11 9 10 11 8 3 20 Fire 483 | 6 67 32 36 8 53 85 74 8 5 24 6 . 14 . 37 . . . 6 3 4 4 3 2 . 6 Melee 321 | . . . . . . . . . 26 . 1 . . 8 29 . 13 4 24 29 41 36 14 32 13 51 Ram . | . . . . . . . . . . . . . . . . . . . . . . . . . . . Kick . | . . . . . . . . . . . . . . . . . . . . . . . . . . . Crush 1 | . 1 . . . . . . . . . . . . . . . . . . . . . . . . . Escape Stasis 180 | . . . . . . 8 69 . . . . . . . 61 . . . 36 . . . . . 6 . Rewire 103 | . . . . . . . 85 . . . . . . . 18 . . . . . . . . . . . Trap . | . . . . . . . . . . . . . . . . . . . . . . . . . . . Miscellaneous . | . . . . . . . . . . . . . . . . . . . . . . . . . . . Route ------- -11/Scrapyard -10/Materials (discovered 4 exits: *Mat x2 / *Min / [*Sub]) -10/Mines (discovered 2 exits: *Mat / [*Sub]) -9/Materials (discovered 2 exits: *Mat / *Min) -9/Mines -8/Materials (discovered 4 exits: [*Fac x2] / *Sto x2) -8/Storage (discovered 2 exits: [*Fac] / Gar) -8/Garrison (discovered 2 exits: *Rec x2) -8/Recycling -6/Factory (discovered 3 exits: *Fac / *Low x2) -6/Lower Caves -6/Lower Caves (discovered 2 exits: *Fac / *Zio) -6/Zion -5/Proximity Caves -5/Factory -5/Extension (discovered 2 exits: *Fac / *Cet) -5/Cetus -5/Archives (discovered 2 exits: *Hub x2) -5/Hub_04(d) -4/Factory (discovered 6 exits: *Res x4 / Upp x2) -3/Research (discovered 4 exits: *Res / Arm / *Qua x2) -3/Quarantine -2/Research (discovered 3 exits: *Acc / *Tes x2) -2/Testing (discovered 3 exits: *Acc / *Sec / [*Frg]) -2/Section 7 -1/Access -1/Command History --------- Turn | Location | Event 7 | -11/Scrapyard | Discovered new exit (range 15) 124 | -11/Scrapyard | Entered Materials 312 | -10/Materials | Build established: Mutant 551 | -10/Materials | Discovered new exit (range 12) 648 | -10/Materials | Discovered new exit (range 16) 698 | -10/Materials | Discovered new exit (range 7) 832 | -10/Materials | Discovered new exit (range 15) 986 | -10/Materials | Entered Mines 1077 | -10/Mines | Discovered new exit (range 13) 1371 | -10/Mines | Learned Materials emergency access door positions 1544 | -10/Mines | Learned Materials terminal intel 1549 | -10/Mines | Discovered new exit (range 10) 1674 | -10/Mines | Met a Derelict shopkeep closing up shop 1764 | -10/Mines | Excavation squad dispatched 1764 | -10/Mines | A large section of the Mines collapsed 1842 | -10/Mines | Entered Materials 1842 | -9/Materials | Evolved 2 slots: Propulsion x1, Utility x1 1844 | -9/Materials | Loaded intel: 12 terminal locations 1970 | -9/Materials | Repaired Lgt. Treads 2516 | -9/Materials | Discovered new exit (range 16) 2700 | -9/Materials | Identified exit to Mines 2759 | -9/Materials | Entered Mines 2760 | -9/Mines | Learned location of Storage (-8) 2828 | -9/Mines | Learned Materials emergency access door positions 2924 | -9/Mines | Assembled infested the area 2929 | -9/Mines | Assisted by a Guerilla fighting off Assembled 2969 | -9/Mines | Found a Scrap Suit stashed away for nefarious purposes 3110 | -9/Mines | Received a Rocket Launcher from a helpful Derelict 3148 | -9/Mines | Discovered new exit (range 6) 3208 | -9/Mines | Entered Materials 3208 | -8/Materials | Evolved 2 slots: Propulsion x1, Utility x1 3598 | -8/Materials | Discovered new exit (range 4) 3781 | -8/Materials | Identified exit to Storage 3924 | -8/Materials | Discovered new exit (range 10) 4126 | -8/Materials | Entered Storage 4460 | -8/Storage | Repaired Hvy. Armor Plating 4867 | -8/Storage | Lost 3 parts (1p2n) 5199 | -8/Storage | Identified exit to Garrison 5246 | -8/Storage | Repaired Hvy. Armor Plating 5301 | -8/Storage | Discovered new exit (range 5) 5422 | -8/Storage | Entered Garrison 5485 | -8/Garrison | Build established: Scavenger-Mutant 5500 | -8/Garrison | Triggered checkpoint 5564 | -8/Garrison | Garrison Relay disabled 5737 | -8/Garrison | Installed Relay Interface Framework 5818 | -8/Garrison | Triggered checkpoint 5818 | -8/Garrison | Triggered checkpoint 5822 | -8/Garrison | Triggered checkpoint 6057 | -8/Garrison | Discovered new exit (range 11) 6086 | -8/Garrison | Triggered checkpoint 6138 | -8/Garrison | Triggered checkpoint 6152 | -8/Garrison | Garrison Relay disabled 6620 | -8/Garrison | Triggered checkpoint 6622 | -8/Garrison | Discovered new exit (range 10) 6661 | -8/Garrison | Entered Recycling 6661 | -8/Recycling | Accompanied by 3 allies 7274 | -8/Recycling | Discovered new exit (range 6) 7343 | -8/Recycling | Entered Factory 7343 | -6/Factory | Evolved 4 slots: Propulsion x1, Utility x3 7452 | -6/Factory | Discovered new exit (range 9) 7452 | -6/Factory | Identified exit to Lower Caves 7550 | -6/Factory | Discovered new exit (range 13) 7664 | -6/Factory | Repaired Imp. VTOL Module 7763 | -6/Factory | Fabricated Imp. VTOL Module? 7957 | -6/Factory | Build established: Hacker-Scout 8095 | -6/Factory | Entered Lower Caves 8131 | -6/Lower Caves | Entered a destroyed Warlord outpost 8245 | -6/Lower Caves | Discovered new exit (range 8) 8249 | -6/Lower Caves | Identified exit to Lower Caves 8257 | -6/Lower Caves | Entered another Lower Caves area 8266 | -6/Lower Caves | Discovered new exit (range 17) 8276 | -6/Lower Caves | Learned Factory terminal intel 8358 | -6/Lower Caves | Learned 4 Factory zone layouts 8437 | -6/Lower Caves | Encountered a Warlord checkpoint 8456 | -6/Lower Caves | Discovered new exit (range 14) 8459 | -6/Lower Caves | Identified exit to Zion 8470 | -6/Lower Caves | Entered Zion 8484 | -6/Zion | Learned location of Warlord (-4) 8493 | -6/Zion | Acquired unknown access codes intercepted by a Zionite 8494 | -6/Zion | Discovered new exit (range 19) 8498 | -6/Zion | Identified exit to Proximity Caves 8511 | -6/Zion | Entered Proximity Caves 8768 | -5/Proximity Caves | Discovered new exit (range 4) 8769 | -5/Proximity Caves | Identified exit to Factory 8769 | -5/Proximity Caves | Entered Factory 8769 | -5/Factory | Evolved 2 slots: Utility x2 8771 | -5/Factory | Loaded intel: 28 terminal locations 8845 | -5/Factory | Fabricated Imp. VTOL Module (x1) 8870 | -5/Factory | Discovered new exit (range 6) 8940 | -5/Factory | Fabricated Imp. VTOL Module? 9089 | -5/Factory | Build established: Hacker-Ninja 9111 | -5/Factory | Identified exit to Extension 9112 | -5/Factory | Entered Extension 9121 | -5/Extension | Rescued A7 9161 | -5/Extension | Rescued a captive Derelict 9164 | -5/Extension | Rescued a captive Derelict 9260 | -5/Extension | Rescued a captive Derelict 9261 | -5/Extension | Rescued a captive Derelict 9550 | -5/Extension | Spotted B-75 Beast 9574 | -5/Extension | Allies destroyed B-75 Beast 9577 | -5/Extension | Extracted ID and sensor layout for unrecognized location from A7's data core 9601 | -5/Extension | Spotted B-75 Beast 9668 | -5/Extension | Lost 9 allies 9934 | -5/Extension | Rescued a captive Derelict 9935 | -5/Extension | Rescued a captive Derelict 9953 | -5/Extension | Lost 3 allies 10101 | -5/Extension | Lost 3 allies 10153 | -5/Extension | Rescued a captive Derelict 10177 | -5/Extension | Discovered new exit (range 10) 10177 | -5/Extension | Discovered new exit (range 6) 10300 | -5/Extension | Identified exit to Factory 10306 | -5/Extension | Identified exit to Cetus 10309 | -5/Extension | Entered Cetus 10309 | -5/Cetus | Accompanied by 1 ally 10312 | -5/Cetus | Spotted Cetus Guard 10312 | -5/Cetus | Spotted Cetus Guard 10313 | -5/Cetus | Spotted Cetus Guard 10314 | -5/Cetus | Spotted Cetus Guard 10334 | -5/Cetus | Discovered new exit (range 20) 10338 | -5/Cetus | Identified exit to Archives 10338 | -5/Cetus | Entered Archives 10385 | -5/Archives | Build established: Hacker-Scout 10391 | -5/Archives | Discovered new exit (range 15) 10417 | -5/Archives | Discovered new exit (range 14) 10420 | -5/Archives | Identified exit to Hub_04(d) 10420 | -5/Archives | Entered Hub_04(d) 10421 | -5/Hub_04(d) | Discovered exit to Factory (range 12) 10478 | -5/Hub_04(d) | Network Hub disabled 10482 | -5/Hub_04(d) | Spotted Lightning 10482 | -5/Hub_04(d) | Spotted Lightning 10482 | -5/Hub_04(d) | Spotted Lightning 10486 | -5/Hub_04(d) | Entered Factory 10486 | -4/Factory | Evolved 2 slots: Power x1, Propulsion x1 10645 | -4/Factory | Identified exit to Upper Caves 10645 | -4/Factory | Identified exit to Research 10718 | -4/Factory | Repaired Imp. VTOL Module? 10784 | -4/Factory | Repaired Imp. VTOL Module 10804 | -4/Factory | Central database locked down 10872 | -4/Factory | Build established: Hacker-Ninja 11046 | -4/Factory | Fabricated Exp. Propulsion Shielding? 11075 | -4/Factory | Entered Research 11075 | -3/Research | Evolved 2 slots: Propulsion x1, Utility x1 11263 | -3/Research | Identified exit to Armory 11263 | -3/Research | Identified exit to Quarantine 11550 | -3/Research | Discovered new exit (range 11) 11556 | -3/Research | Entered Quarantine 11574 | -3/Quarantine | Identified exit to Research 11584 | -3/Quarantine | Lost 3 parts (2u1w) 11618 | -3/Quarantine | Found Alien Slashing Weapon 11625 | -3/Quarantine | Found Alien Artifact 11631 | -3/Quarantine | Identified Sigix Broadsword 11813 | -3/Quarantine | Repaired Exp. Propulsion Shielding 11834 | -3/Quarantine | Build established: Hacker-Scout 12041 | -3/Quarantine | Found Alien Artifact 12052 | -3/Quarantine | Found Alien Artifact 12052 | -3/Quarantine | Identified Hpw. Transdimensional Reconstructor 12052 | -3/Quarantine | Warped through subspace 12130 | -3/Quarantine | Entered Research 12130 | -2/Research | Evolved 2 slots: Propulsion x1, Utility x1 12163 | -2/Research | Discovered new exit (range 16) 12175 | -2/Research | Identified exit to Access 12337 | -2/Research | Build established: Hacker-Ninja 12357 | -2/Research | Spotted B-90 Cyclops 12456 | -2/Research | Spotted B-90 Cyclops 12457 | -2/Research | Identified exit to Testing 12630 | -2/Research | Search patrols dispatched 12824 | -2/Research | Entered Testing 12837 | -2/Testing | Spotted Superbehemoth 12891 | -2/Testing | Repaired Adv. Sensor Array 12952 | -2/Testing | Repaired Imp. VTOL Module 13052 | -2/Testing | Found Prototype Energy Cannon 13052 | -2/Testing | Identified Cld. Nova Cannon 13087 | -2/Testing | Found Prototype Hackware 13087 | -2/Testing | Identified System Mapper 13122 | -2/Testing | Spotted Striker 13136 | -2/Testing | Found Prototype Device 13136 | -2/Testing | Identified 2N-1CE's Frost Array 13204 | -2/Testing | Spotted Fortress 13224 | -2/Testing | Discovered new exit (range 6) 13224 | -2/Testing | Discovered new exit (range 7) 13225 | -2/Testing | Identified exit to Section 7 13225 | -2/Testing | Entered Section 7 13286 | -2/Section 7 | Spotted Executioner 13287 | -2/Section 7 | Spotted Executioner 13294 | -2/Section 7 | Identified Subatomic Replicator 13294 | -2/Section 7 | Identified Transdimensional Reconstructor 13311 | -2/Section 7 | Spotted B-99 Colossus 13335 | -2/Section 7 | Found Core Reset Matrix 13347 | -2/Section 7 | Found Alien Artifact 13350 | -2/Section 7 | Identified LRC Storage 13353 | -2/Section 7 | Found Alien Artifact 13360 | -2/Section 7 | Identified LRC Insulator 13361 | -2/Section 7 | Installed LRC Insulator, 1 resistance modified: EM +25% 13362 | -2/Section 7 | Used Subatomic Replicator to replicate LRC Storage 13363 | -2/Section 7 | Installed LRC Storage, increased inventory capacity (+2) 13365 | -2/Section 7 | Installed LRC Storage, increased inventory capacity (+2) 13462 | -2/Section 7 | Found Alien Artifact 13505 | -2/Section 7 | Spotted Alpha 7 13512 | -2/Section 7 | Found Transdimensional Reconstructor 13513 | -2/Section 7 | Found Transdimensional Reconstructor 13520 | -2/Section 7 | Spotted Striker 13520 | -2/Section 7 | Spotted Striker 13592 | -2/Section 7 | Found Alien Energy Gun 13612 | -2/Section 7 | Spotted Alpha 7 13612 | -2/Section 7 | Warped through subspace 13631 | -2/Section 7 | Found Alien Artifact 13648 | -2/Section 7 | Identified Integrity Redistributor 13648 | -2/Section 7 | Identified Spacefold Activator 13665 | -2/Section 7 | Spotted S7 Guard 13670 | -2/Section 7 | Found Alien Artifact 13690 | -2/Section 7 | Entered Access 13690 | -1/Access | Evolved 2 slots: Power x1, Weapon x1 13717 | -1/Access | Identified exit to Command 13785 | -1/Access | Fabricated Exp. Propulsion Shielding (x1) 13891 | -1/Access | Spotted B-99 Colossus 13892 | -1/Access | Spotted B-99 Colossus 13893 | -1/Access | Entered Command 14145 | -1/Command | Failed to warp due to unstable space 14196 | -1/Command | Lost 4 parts (4u) 14262 | -1/Command | Spotted B-99 Colossus 14291 | -1/Command | Spotted Combat Programmer 14291 | -1/Command | Spotted Combat Programmer 14292 | -1/Command | Core integrity fell below 50% 14309 | -1/Command | Met MAIN.C 14313 | -1/Command | 0b10 Conduit disabled 14418 | -1/Command | Used Integrity Redistributor, redistributed integrity to core (+199) 14427 | -1/Command | System corruption reached 10% 14431 | -1/Command | Self-destructed Last Messages --------------- And time is critical! The Sigix have likely already wiped humanity clean from the universe, and I will not let them do the same to me. You can still make a valuable contribution to your creator by offering up the wealth of secrets your systems must hold by now. So if you wouldn't mind, it's time to surrender. 14309_ Door malfunctions. 14310_ Dropped Lrn. Tractor Beam. 14311_ Dropped Adv. Particle Charger. 14313_ 0b10 Conduit disabled. 14327_ Dropped Imp. VTOL Module. 14333_ System corrupted: Energy discharge (-69). 14333_ Dropped Xenon Bombardment Thruster. 14334_ Dropped Electron Diverter. 14334_ Dropped Exp. Q-thruster. 14394_ Imp. Reaction Control System destroyed. 14411_ Activated siege mode. 14418_ Integrity redistributed to core (+199). 14419_ Lgt. Quantum Reactor destroyed. 14426_ Graphene Brace destroyed. 14429_ Sigix Broadsword destroyed. Map ----- +----------------------------------------------------+ | ?????????????????????????????????????????????????? | | ?????????????????????????????????????????????????? | | ?????????????????????????????????????????????????? | | ?????????????????????????????????????????????????? | | ?????????????????????????????????????????????????? | | ?????????????????????????????????????????????????? | | ?????????????????????????????????????????????????? | | ?????????????????????????????????????????????????? | | ?????????????????????????????????????????????????? | | ?????????????????????????????????????????????????? | | ?????????????????????????????????????????????????? | | ?????????????????????????????????????????????????? | | ?????????????????????????????????????????????????? | | ?????????????????????????????????????????????????? | | ?????????????????????????????????????????????????? | | ?????????????????????????????????????????????????? | | ???????????????#######################???????????? | | ???????????????#""""""" """ #???????????? | | ???????????????#""= !! #???????????? | | ???????????????#""="" " ############# | | ???????????????#"="""""""" / | | ???????????????#"===" "" / | | ???????????????#""=="""""" / | | ???????????????#"" """""" ############# | | ???????????????# " """ " MMM #???????????? | | ???????????????# " @MMM #???????????? | | ???????????????# MMM ""#???????????? | | ???????????????#"""""" """""""#???????????? | | ???????????????#"" """""""""#???????????? | | ???????????????# """""""""""#???????????? | | ???????????????# " " " " #???????????? | | ???????????????# " " " " #???????????? | | ???????????????" " " " """" " ????????????? | | ???????????????" """ " " """"?????????????? | | ???????????????" " " " ????????????????? | | ???????????????# """""""""" "???????????????? | | ???????????????# " """ " """""???????????????? | | ???????????????# """ " ?????????????????????? | | ???????????????########?###??????????????????????? | | ?????????????????????????????????????????????????? | | ?????????????????????????????????????????????????? | | ?????????????????????????????????????????????????? | | ?????????????????????????????????????????????????? | | ?????????????????????????????????????????????????? | | ?????????????????????????????????????????????????? | | ?????????????????????????????????????????????????? | | ?????????????????????????????????????????????????? | | ?????????????????????????????????????????????????? | | ?????????????????????????????????????????????????? | | ?????????????????????????????????????????????????? | +----------------------------------------------------+ Best States ------------- Heat Dissipation 152 Energy Generation 59 Energy Capacity 330 Matter Stores 300 Matter Capacity 300 Sight Range 20 Robot Scan Range 18 Terrain Scan Density 10 Jamming Range 16 Armor Coverage 600 Resistance: EM 25 Propulsion Shielding 90 Utility Shielding 33 Evasion (%) 77 Target Analysis 8 Recoil Reduction 4 Particle Charging 25 Offensive Hacking 42 Defensive Hacking 14 Relay Coupler Types 1 Relay Coupler Value 21 Authchip Count 2 Item Schematics ----------------- Imp. VTOL Module | -8/Materials | Scanalyzed Exp. Power Shielding | -5/Factory | Hacked Exp. Propulsion Shielding | -5/Factory | Hacked Exp. Utility Shielding | -3/Research | Hacked Exp. Field Recycling Unit | -3/Quarantine | Archive Gravity Neutralizer | -3/Quarantine | Archive Adv. EM Shield | -2/Section 7 | Archive Prc. Matter Filter | -2/Section 7 | Archive Prc. Energy Filter | -2/Section 7 | Archive Exp. Weapon Shielding | -2/Section 7 | Archive Robot Schematics ------------------ H-77 Assassin | -3/Quarantine | Archive T-07 Excavator | -2/Section 7 | Archive B-74 Champion | -2/Section 7 | Archive Fabricated ------------ Imp. VTOL Module | x1 | -6/Factory Imp. VTOL Module | x1 | -5/Factory Imp. VTOL Module | x1 | -5/Factory | Authchip Exp. Propulsion Shielding | x1 | -4/Factory | Authchip Exp. Propulsion Shielding | x1 | -1/Access Repaired ---------- Lgt. Treads | 11% | -9/Materials Hvy. Armor Plating | 68% | -8/Storage Hvy. Armor Plating | 38% | -8/Storage Imp. VTOL Module | 70% | -6/Factory Imp. VTOL Module | 48% | -4/Factory Imp. VTOL Module | 50% | -4/Factory Exp. Propulsion Shielding | 18% | -3/Quarantine Adv. Sensor Array | 25% | -2/Testing Imp. VTOL Module | 50% | -2/Testing Alien Tech Used ----------------- Sigix Broadsword High-powered Transdimensional Reconstructor LRC Insulator Subatomic Replicator LRC Storage Transdimensional Reconstructor Spacefold Activator Integrity Redistributor Achievements -------------- None Challenges ------------ None Game ------ Seed HackingSupersonicDriver Manual? 0 Play Time 04:14:18 Cumulative 119.9 hours Start 2025.07.05 @ 19:20:58 End 2025.07.07 @ 18:30:20 Sessions 8 Manual Loads 0 Difficulty Rogue Special Mode None Game No. 71 Rogue 71 Adventurer 0 Explorer 0 Win Type - Total 11 Types 2/1/4/1/1/0/0/1/0/1 Lore% 65 Gallery% 61 Achievement% 60 Wizard Run 0 Options --------- Layout 0 ASCII 0 Keyboard 1 Movement Vi Keybinds 0 Fullscreen 2 Font 18/SmallcapsGlow Map View 76x50 Zoom Use 0% Tactical HUD 1 Map Filters NONE Filters NONE Steam 1 RUN: d219b757-4237-4f60-901b-60e2c5dd3845